bitfinex/quotes_BTCUSD_20250119
["timestamp","ask_amount","ask_price","bid_price","bid_amount"]
[1737292319699,0.4879269,105090.0,105080.0,0.22482176]
[1737292320661,0.3927709,105090.0,105080.0,0.21734176]
[1737292320867,0.4879269,105090.0,105080.0,0.22482176]
[1737292321785,0.4879269,105090.0,105080.0,0.21734176]
[1737292321933,0.4879269,105090.0,105080.0,0.22482176]
[1737292322138,0.4879269,105090.0,105080.0,0.12965676]
[1737292322662,0.31674236,105090.0,105080.0,0.12965676]
[1737292324332,0.63275273,105090.0,105080.0,0.12965676]
[1737292325165,0.63275273,105090.0,105080.0,0.12217676]
[1737292325366,0.73199354,105090.0,105080.0,0.04557676]
[1737292325779,0.45639744,105090.0,105080.0,0.04557676]
[1737292325964,0.35715663,105090.0,105080.0,0.04557676]
[1737292327720,0.45639744,105090.0,105080.0,0.04557676]
[1737292332605,0.45639744,105090.0,105080.0,0.00057676]
[1737292337028,0.60606024,105090.0,105080.0,0.00057676]
[1737292337232,0.68559744,105090.0,105080.0,0.00057676]
[1737292337421,0.53559744,105090.0,105080.0,0.00057676]
[1737292338099,0.45639744,105090.0,105080.0,0.00057676]
[1737292338528,0.49021188,105090.0,105080.0,0.00057676]
[1737292339475,0.49021188,105090.0,105080.0,0.09574176]
[1737292339685,0.39505588,105090.0,105080.0,0.09574176]
[1737292339889,0.71118763,105090.0,105080.0,0.09574176]
[1737292340292,0.80634363,105090.0,105080.0,0.09574176]
[1737292340768,0.71118763,105090.0,105080.0,0.09574176]
[1737292340930,0.80634363,105090.0,105080.0,0.09574176]
[1737292341129,0.71118763,105090.0,105080.0,0.09574176]
[1737292341363,0.49021188,105090.0,105080.0,0.00057676]
[1737292341885,0.29581507,105090.0,105080.0,0.09574176]
[1737292342036,0.29581507,105090.0,105080.0,0.21874176]
[1737292342240,0.29581507,105090.0,105080.0,0.71798257]
[1737292343789,0.29581507,105090.0,105080.0,0.72554257]
[1737292343918,0.29581507,105090.0,105080.0,0.36874176]
[1737292344124,0.29581507,105090.0,105080.0,0.52630176]
[1737292344519,0.00760568,105090.0,105080.0,0.51874176]
[1737292344722,0.00760568,105090.0,105080.0,0.52630176]
[1737292345242,0.00760568,105090.0,105080.0,0.72554257]
[1737292351277,0.00760568,105090.0,105080.0,0.36874176]
[1737292351403,0.00760568,105090.0,105080.0,0.62630176]
[1737292352215,0.00760568,105090.0,105080.0,0.47630176]
[1737292352669,0.00760568,105090.0,105080.0,0.62630176]
[1737292353314,0.00760568,105090.0,105080.0,0.72554257]
[1737292353723,0.00764568,105090.0,105080.0,0.72554257]
[1737292353945,0.00764568,105090.0,105080.0,0.72550257]
[1737292354627,0.00764568,105090.0,105080.0,9.72550257]
[1737292356177,0.00093964,105090.0,105080.0,9.72550257]
[1737292356365,0.00775697,105090.0,105080.0,9.72550257]
[1737292357541,0.00093964,105090.0,105080.0,9.72550257]
[1737292358377,0.00794528,105090.0,105080.0,9.72550257]
[1737292359211,0.00794528,105090.0,105080.0,9.62626176]
[1737292359808,0.00794528,105090.0,105080.0,9.61870176]
[1737292359987,0.00794528,105090.0,105080.0,9.62586176]
[1737292362602,0.00794528,105090.0,105080.0,9.72510257]
[1737292365566,0.00093964,105090.0,105080.0,9.72510257]
[1737292366132,0.00093964,105090.0,105080.0,9.73460336]
[1737292367844,7e-08,105100.0,105080.0,9.94174336]
[1737292368056,0.08554234,105110.0,105100.0,0.531087]
[1737292368253,0.08554234,105110.0,105100.0,3.14245181]
[1737292368434,0.00943034,105110.0,105100.0,3.14245181]
[1737292368593,0.51325404,105120.0,105110.0,0.55]
[1737292368802,0.51325404,105120.0,105110.0,3.78102581]
[1737292368999,0.15657944,105130.0,105120.0,0.702269]
[1737292369229,0.11853144,105130.0,105120.0,3.48723781]
[1737292369809,0.06853144,105130.0,105120.0,3.48723781]
[1737292370240,0.23850603,105150.0,105140.0,0.831051]
[1737292370562,0.21948603,105150.0,105140.0,3.20950181]
[1737292370763,0.00089901,105160.0,105150.0,0.45]
[1737292370976,0.00089901,105160.0,105150.0,3.18015981]
[1737292371178,0.00089901,105160.0,105150.0,3.06050081]
[1737292373168,0.00089901,105160.0,105150.0,2.98008281]
[1737292373502,0.00089901,105160.0,105150.0,2.97930328]
[1737292374104,0.00089901,105160.0,105150.0,2.84841528]
[1737292374545,0.00089901,105160.0,105150.0,2.79148028]
[1737292375599,0.00089901,105160.0,105150.0,2.74061728]
[1737292377219,0.00093901,105160.0,105150.0,2.74061728]
[1737292377731,0.00093901,105160.0,105150.0,2.75001386]
[1737292380184,0.00093901,105160.0,105150.0,2.66662486]
[1737292381588,0.00093901,105160.0,105150.0,0.80025986]
[1737292381827,0.00093901,105160.0,105150.0,4.19282086]
[1737292382034,0.00089901,105170.0,105160.0,0.64431347]
[1737292382238,0.00089901,105170.0,105160.0,5.43255028]
[1737292382445,0.00089901,105170.0,105160.0,5.25596828]
[1737292383105,0.00089901,105170.0,105160.0,4.96095528]
[1737292383285,4.4e-07,105170.0,105160.0,3.57170028]
[1737292383491,4.4e-07,105170.0,105160.0,0.75071428]
[1737292384746,4.4e-07,105170.0,105160.0,0.74355428]
[1737292384954,4.4e-07,105170.0,105160.0,0.60035428]
[1737292385579,4.4e-07,105170.0,105160.0,0.44355428]
[1737292385776,4.4e-07,105170.0,105160.0,0.45035428]
[1737292386319,4.4e-07,105170.0,105160.0,0.44355428]
[1737292386530,4.4e-07,105170.0,105160.0,0.45035428]
[1737292386751,4.4e-07,105170.0,105160.0,0.61294833]
[1737292386965,4.4e-07,105170.0,105160.0,0.37052786]
[1737292387180,4.4e-07,105170.0,105160.0,0.24431347]
[1737292387392,4.4e-07,105170.0,105160.0,0.101893]
[1737292387641,4.4e-07,105170.0,105160.0,0.25111347]
[1737292388132,4.4e-07,105170.0,105160.0,0.095093]
[1737292388331,4.4e-07,105170.0,105160.0,0.25111347]
[1737292388901,4.4e-07,105170.0,105160.0,0.50111347]
[1737292389083,4.4e-07,105170.0,105160.0,0.60035428]
[1737292389311,4.044e-05,105170.0,105160.0,0.60035428]
[1737292393070,4.044e-05,105170.0,105160.0,0.50035428]
[1737292393328,4.044e-05,105170.0,105160.0,0.49431347]
[1737292393535,4.044e-05,105170.0,105160.0,0.50154117]
[1737292393893,4.044e-05,105170.0,105160.0,0.39474117]
[1737292394090,4.044e-05,105170.0,105160.0,0.40154117]
[1737292394295,0.00093861,105170.0,105160.0,0.49474117]
[1737292394663,0.00093861,105170.0,105160.0,0.39474117]
[1737292395011,0.00093861,105170.0,105160.0,0.50154117]
[1737292395313,0.00093861,105170.0,105160.0,0.49474117]
[1737292395529,0.00093861,105170.0,105160.0,0.2455207]
[1737292395739,0.00093861,105170.0,105160.0,0.50154117]
[1737292396102,0.00093861,105170.0,105160.0,0.49474117]
[1737292396303,0.00093861,105170.0,105160.0,0.2523207]
[1737292396507,0.08343861,105170.0,105160.0,0.1023207]
[1737292397032,0.08343861,105170.0,105160.0,0.25154117]
[1737292397237,0.1858981,105170.0,105160.0,0.25154117]
[1737292397600,0.1858981,105170.0,105160.0,0.1023207]
[1737292398022,0.28513891,105170.0,105160.0,0.0004277]
[1737292398232,0.27776342,105170.0,105160.0,0.0004277]
[1737292401425,0.28730553,105170.0,105160.0,0.0004277]
[1737292403740,0.28730553,105170.0,105160.0,0.0955207]
[1737292403939,0.18806472,105170.0,105160.0,0.0955207]
[1737292404345,0.09298072,105170.0,105160.0,0.0955207]
[1737292404848,0.08343861,105170.0,105160.0,0.0955207]
[1737292405369,0.00093861,105170.0,105160.0,0.24474117]
[1737292407184,0.00982057,105170.0,105160.0,0.24474117]
[1737292413573,0.00982057,105170.0,105160.0,0.0955207]
[1737292414019,0.00093861,105170.0,105160.0,0.0955207]
[1737292414654,0.00093861,105170.0,105160.0,0.0954807]
[1737292415096,0.00093861,105170.0,105160.0,0.24470117]
[1737292418541,0.00093861,105170.0,105160.0,0.1022007]
[1737292419192,0.09602261,105170.0,105160.0,0.25142117]
[1737292419568,0.09602261,105170.0,105160.0,0.0954807]
[1737292419932,0.27376342,105170.0,105160.0,0.0003877]
[1737292421273,0.27376342,105170.0,105160.0,0.0954807]
[1737292425111,0.27376342,105170.0,105160.0,0.24470117]
[1737292425329,0.27376342,105170.0,105160.0,0.14960817]
[1737292426147,0.28323934,105170.0,105160.0,0.14960817]
[1737292426891,0.28323934,105170.0,105160.0,0.0003877]
[1737292427834,0.43323934,105170.0,105160.0,0.0003877]
[1737292428053,0.51329877,105170.0,105160.0,0.0003877]
[1737292428263,0.51329877,105170.0,105150.0,13.0]
[1737292428264,0.245093,105160.0,105150.0,13.0]
[1737292428531,0.47033381,105160.0,105150.0,13.0]
[1737292429101,0.47767287,105160.0,105150.0,13.0]
[1737292429536,0.73158901,105160.0,105150.0,13.0]
[1737292430328,0.85382982,105160.0,105150.0,12.70170802]
[1737292430540,0.85382982,105160.0,105150.0,12.58360802]
[1737292431119,0.85382982,105160.0,105150.0,12.52654802]
[1737292432107,0.75458901,105160.0,105150.0,12.52654802]
[1737292432311,0.64338901,105160.0,105150.0,12.21890802]
[1737292432859,0.64338901,105160.0,105150.0,12.11375802]
[1737292433049,0.64338901,105160.0,105150.0,11.76023695]
[1737292433249,0.48967287,105160.0,105150.0,11.64282695]
[1737292433449,0.68401368,105160.0,105150.0,11.51482695]
[1737292433674,1.38895052,105160.0,105150.0,11.46590695]
[1737292433810,1.28875052,105160.0,105150.0,11.36421902]
[1737292434249,1.28875052,105160.0,105150.0,11.32617902]
[1737292434462,1.28875052,105160.0,105150.0,11.26911902]
[1737292434669,1.28875052,105160.0,105150.0,11.25011902]
[1737292435074,1.28875052,105160.0,105150.0,11.19305902]
[1737292435319,1.28381368,105160.0,105150.0,11.19305902]
[1737292435752,0.58381368,105160.0,105150.0,11.19305902]
[1737292436256,0.79658905,105160.0,105150.0,11.19305902]
[1737292437402,0.88149841,105160.0,105150.0,11.19305902]
[1737292438355,1.09427378,105160.0,105150.0,11.19305902]
[1737292439868,0.88149841,105160.0,105150.0,11.19305902]
[1737292440319,0.88149841,105160.0,105150.0,11.19348672]
[1737292441656,1.58149841,105160.0,105150.0,11.19348672]
[1737292441872,1.58149841,105160.0,105150.0,11.16005215]
[1737292442275,1.50133901,105160.0,105150.0,11.06495215]
[1737292443265,1.50133901,105160.0,105150.0,10.96985215]
[1737292443266,1.60153901,105160.0,105150.0,10.96985215]
[1737292443446,1.60153901,105160.0,105150.0,10.93651215]
[1737292443645,1.77183521,105160.0,105150.0,10.91721558]
[1737292444049,1.77183521,105160.0,105150.0,10.78743558]
[1737292444719,1.79538145,105160.0,105150.0,10.72494564]
[1737292444925,2.12882215,105160.0,105150.0,10.72494564]
[1737292445126,1.79538145,105160.0,105150.0,10.64886564]
[1737292445299,1.79044085,105160.0,105150.0,10.62984564]
[1737292445450,1.7953808,105160.0,105150.0,10.62984564]
[1737292446258,1.7953808,105160.0,105150.0,10.53474564]
[1737292446999,1.7953808,105160.0,105150.0,10.51572564]
[1737292447205,1.7953808,105160.0,105150.0,10.45866564]
[1737292447615,1.92275533,105160.0,105150.0,10.40533564]
[1737292448131,1.92275533,105160.0,105150.0,10.25301564]
[1737292449199,1.92275533,105160.0,105150.0,10.17693564]
[1737292449397,1.92275533,105160.0,105150.0,10.15401564]
[1737292449916,1.92275533,105160.0,105150.0,10.13401564]
[1737292450118,1.70997996,105160.0,105150.0,10.05793564]
[1737292450480,1.70997996,105160.0,105150.0,10.03891564]
[1737292451078,1.70997996,105160.0,105150.0,9.98185564]
[1737292451508,1.70997996,105160.0,105150.0,9.94381564]
[1737292451822,1.71657996,105160.0,105150.0,9.94381564]
[1737292452130,1.71747835,105160.0,105150.0,9.86773564]
[1737292453178,1.71747835,105160.0,105150.0,9.75807564]
[1737292453364,2.05091195,105160.0,105150.0,9.70516564]
[1737292453629,2.04792319,105160.0,105150.0,9.70516564]
[1737292453960,2.04792319,105160.0,105150.0,9.63737259]
[1737292454185,2.04792319,105160.0,105150.0,9.52375939]
[1737292454684,2.04792319,105160.0,105150.0,9.48571939]
[1737292455152,2.26069856,105160.0,105150.0,9.42767939]
[1737292455383,2.26069856,105160.0,105150.0,9.37061939]
[1737292456219,2.26069856,105160.0,105150.0,9.35159939]
[1737292456420,2.13332403,105160.0,105150.0,9.27551939]
[1737292456723,2.13332403,105160.0,105150.0,9.24087939]
[1737292457023,2.13332403,105160.0,105150.0,9.21580614]
[1737292457182,2.13332403,105160.0,105150.0,9.13972614]
[1737292457388,2.13332403,105160.0,105150.0,9.13319269]
[1737292457587,1.79329043,105160.0,105150.0,9.13319269]
[1737292457777,1.69969043,105160.0,105150.0,9.13319269]
[1737292457976,1.67829043,105160.0,105150.0,9.13319269]
[1737292458334,1.68489043,105160.0,105150.0,9.13319269]
[1737292459301,1.67829043,105160.0,105150.0,9.13319269]
[1737292459447,1.68433852,105160.0,105150.0,9.13319269]
[1737292460432,1.68433852,105160.0,105150.0,9.11410178]
[1737292460793,1.59944914,105160.0,105150.0,9.11410178]
[1737292463469,1.81222451,105160.0,105150.0,9.11410178]
[1737292464287,1.68489043,105160.0,105150.0,9.11410178]
[1737292465525,1.58979043,105160.0,105150.0,9.11410178]
[1737292466490,1.41968487,105160.0,105150.0,9.11410178]
[1737292466911,1.39613863,105160.0,105150.0,9.11410178]
[1737292467525,1.38953863,105160.0,105150.0,9.11410178]
[1737292467732,1.13834663,105160.0,105150.0,9.11410178]
[1737292467883,1.13834663,105160.0,105150.0,9.24190178]
[1737292467884,1.1564874,105160.0,105150.0,9.24190178]
[1737292468330,1.15726693,105160.0,105150.0,9.24190178]
[1737292468547,1.1564874,105160.0,105150.0,9.24190178]
[1737292468750,0.4564874,105160.0,105150.0,9.24190178]
[1737292469288,0.20257126,105160.0,105150.0,9.24190178]
[1737292470671,0.71390736,105160.0,105150.0,9.24190178]
[1737292470868,0.81169784,105160.0,105150.0,9.24190178]
[1737292471483,0.85686382,105160.0,105150.0,9.24190178]
[1737292471802,0.85686382,105160.0,105150.0,9.11410178]
[1737292472212,0.72727788,105160.0,105150.0,9.11410178]
[1737292473632,1.5936671,105160.0,105150.0,9.11410178]
[1737292474640,1.49587662,105160.0,105150.0,9.19350178]
[1737292474849,0.79587662,105160.0,105150.0,9.19350178]
[1737292475041,0.79665615,105160.0,105150.0,9.19350178]
[1737292475250,0.79587662,105160.0,105150.0,9.24190178]
[1737292475453,0.79587662,105160.0,105150.0,9.24186178]
[1737292477303,0.79665615,105160.0,105150.0,9.24186178]
[1737292477549,0.37635079,105160.0,105150.0,9.24186178]
[1737292479719,0.4755916,105160.0,105150.0,9.24186178]
[1737292480299,0.37635079,105160.0,105150.0,9.24186178]
[1737292482168,0.35335079,105160.0,105150.0,9.24186178]
[1737292483211,0.35257126,105160.0,105150.0,9.24186178]
[1737292483626,0.35335079,105160.0,105150.0,9.24186178]
[1737292485311,0.35257126,105160.0,105150.0,9.24186178]
[1737292485459,0.35335079,105160.0,105150.0,9.24186178]
[1737292487685,0.64166913,105160.0,105150.0,9.24186178]
[1737292489486,0.35335079,105160.0,105150.0,9.24186178]
[1737292490657,0.37635079,105160.0,105150.0,9.24186178]
[1737292499716,0.20257126,105160.0,105150.0,9.24186178]
[1737292499930,0.20014244,105160.0,105150.0,9.24186178]
[1737292500330,0.22314244,105160.0,105150.0,9.24186178]
[1737292501097,0.47940469,105160.0,105150.0,9.24186178]
[1737292501698,0.5786455,105160.0,105150.0,9.24186178]
[1737292502138,0.47940469,105160.0,105150.0,9.24186178]
[1737292502557,0.63018422,105160.0,105150.0,9.24186178]
[1737292503367,0.62940469,105160.0,105150.0,9.11406178]
[1737292503854,0.62940469,105160.0,105150.0,9.07957237]
[1737292504328,0.37314244,105160.0,105150.0,9.07957237]
[1737292504525,0.47238325,105160.0,105150.0,9.07957237]
[1737292505359,0.48372103,105160.0,105150.0,9.07957237]
[1737292505567,1.18372103,105160.0,105150.0,9.07957237]
[1737292505770,1.60402639,105160.0,105150.0,9.07957237]
[1737292506606,1.60402639,105160.0,105150.0,9.04942431]
[1737292506800,1.9613875,105160.0,105150.0,9.04942431]
[1737292506974,1.9804926,105160.0,105150.0,9.04942431]
[1737292507337,1.9804926,105160.0,105150.0,9.00994063]
[1737292508001,1.9804926,105160.0,105150.0,8.94107026]
[1737292508674,1.9804926,105160.0,105150.0,8.87869468]
[1737292508884,1.9804926,105160.0,105150.0,8.85556571]
[1737292509096,1.56018724,105160.0,105150.0,8.78886571]
[1737292509295,1.56018724,105160.0,105150.0,8.6060431]
[1737292509507,1.89361454,105160.0,105150.0,8.14714279]
[1737292509728,1.89361454,105160.0,105150.0,7.85189932]
[1737292510038,1.91766121,105160.0,105150.0,7.82783686]
[1737292510255,1.91766121,105160.0,105150.0,7.68120877]
[1737292510455,1.91766121,105160.0,105150.0,7.58724925]
[1737292510770,2.61766121,105160.0,105150.0,7.58724925]
[1737292510940,1.91766121,105160.0,105150.0,7.58724925]
[1737292511143,1.56018724,105160.0,105150.0,7.58724925]
[1737292511338,1.56018724,105160.0,105150.0,7.58399198]
[1737292511608,1.56018724,105160.0,105150.0,7.38822558]
[1737292511789,1.89361314,105160.0,105150.0,7.36920558]
[1737292512191,1.53625203,105160.0,105150.0,7.33116558]
[1737292512389,1.53625203,105160.0,105150.0,7.27390559]
[1737292512599,1.20282613,105160.0,105150.0,7.27041046]
[1737292513311,1.20282613,105160.0,105150.0,7.26711041]
[1737292513662,1.20282613,105160.0,105150.0,7.18712098]
[1737292513910,1.20282613,105160.0,105150.0,7.16737997]
[1737292514126,1.20282613,105160.0,105150.0,7.10984772]
[1737292514328,1.20282613,105160.0,105150.0,6.99146867]
[1737292514528,1.20282613,105160.0,105150.0,6.96835011]
[1737292514750,1.20282613,105160.0,105150.0,6.94364459]
[1737292514938,1.56162174,105160.0,105150.0,6.90637687]
[1737292516290,1.56162174,105160.0,105150.0,6.89997926]
[1737292517721,1.56162174,105160.0,105150.0,6.82389926]
[1737292517977,1.56162174,105160.0,105150.0,6.80487926]
[1737292518185,1.56162174,105160.0,105150.0,6.72879926]
[1737292518341,1.56162174,105160.0,105150.0,6.70977926]
[1737292518699,1.89505324,105160.0,105150.0,6.45532844]
[1737292519015,1.89505324,105160.0,105150.0,6.42998906]
[1737292519202,1.89505324,105160.0,105150.0,6.41096906]
[1737292519450,1.89505324,105160.0,105150.0,6.37292906]
[1737292519651,1.89505324,105160.0,105150.0,6.33488906]
[1737292519853,1.89505324,105160.0,105150.0,6.27316906]
[1737292520015,1.89505324,105160.0,105150.0,6.25414906]
[1737292520220,1.53625763,105160.0,105150.0,6.14565475]
[1737292520412,1.53625763,105160.0,105150.0,6.14239925]
[1737292520788,1.5603043,105160.0,105150.0,6.14239925]
[1737292521005,1.20282613,105160.0,105150.0,6.14239925]
[1737292521222,1.17342613,105160.0,105150.0,6.14239925]
[1737292521449,1.17982613,105160.0,105150.0,6.14239925]
[1737292521714,1.20282613,105160.0,105150.0,6.14239925]
[1737292522328,1.90282613,105160.0,105150.0,6.14239925]
[1737292522679,1.89642613,105160.0,105150.0,6.14239925]
[1737292522885,1.20282613,105160.0,105150.0,6.14239925]
[1737292523118,1.56210089,105160.0,105150.0,6.14239925]
[1737292530077,1.56210089,105160.0,105150.0,6.12065881]
[1737292530617,1.56210089,105160.0,105150.0,6.06524223]
[1737292531491,1.98240625,105160.0,105150.0,6.06524223]
[1737292532233,1.98240625,105160.0,105150.0,5.97014223]
[1737292532437,1.97600625,105160.0,105150.0,5.97014223]
[1737292533686,1.55570089,105160.0,105150.0,5.97014223]
[1737292533932,1.55439973,105160.0,105150.0,5.97014223]
[1737292534349,1.55560538,105160.0,105150.0,5.97014223]
[1737292534567,1.53260538,105160.0,105150.0,5.97014223]
[1737292534773,1.53260538,105160.0,105150.0,6.10044223]
[1737292534948,1.55560538,105160.0,105150.0,6.10044223]
[1737292535125,0.85560538,105160.0,105150.0,6.10044223]
[1737292535501,0.81350028,105160.0,105150.0,6.10044223]
[1737292535702,0.55932169,105160.0,105150.0,6.10044223]
[1737292536362,0.8473224,105160.0,105150.0,6.10040223]
[1737292536802,0.87110193,105160.0,105150.0,6.10040223]
[1737292537015,1.02110193,105160.0,105150.0,6.10040223]
[1737292537782,0.6297754,105160.0,105150.0,6.10040223]
[1737292537984,0.72901621,105160.0,105150.0,6.10040223]
[1737292539172,0.6297754,105160.0,105150.0,6.10040223]
[1737292540403,0.37382646,105160.0,105150.0,6.10040223]
[1737292541272,0.20004693,105160.0,105150.0,6.10040223]
[1737292541895,0.48804764,105160.0,105150.0,6.10040223]
[1737292542313,0.39295464,105160.0,105150.0,6.10040223]
[1737292542510,0.3606295,105160.0,105150.0,6.10040223]
[1737292543424,0.09577486,105160.0,105150.0,6.10040223]
[1737292544946,0.7027209,105160.0,105150.0,6.10040223]
[1737292546175,0.57472399,105160.0,105150.0,6.10040223]
[1737292547033,0.59772399,105160.0,105150.0,6.10040223]
[1737292547238,0.74772399,105160.0,105150.0,6.10040223]
[1737292547872,0.6624488,105160.0,105150.0,6.10040223]
[1737292548288,0.66322833,105160.0,105150.0,6.10040223]
[1737292548839,0.62060409,105160.0,105150.0,6.10040223]
[1737292549051,0.7198449,105160.0,105150.0,6.10040223]
[1737292549265,0.72945957,105160.0,105150.0,6.10040223]
[1737292549694,0.73035858,105160.0,105150.0,6.10040223]
[1737292549921,0.37516107,105160.0,105150.0,6.10040223]
[1737292550136,0.37438154,105160.0,105150.0,6.10040223]
[1737292550698,0.35138154,105160.0,105150.0,6.10040223]
[1737292551868,0.34176687,105160.0,105150.0,6.10040223]
[1737292552074,0.36476687,105160.0,105150.0,6.10040223]
[1737292553925,0.62068321,105160.0,105150.0,6.10040223]
[1737292555622,0.71992402,105160.0,105150.0,6.10040223]
[1737292556973,0.65254536,105160.0,105150.0,6.10040223]
[1737292558798,0.50254536,105160.0,105150.0,6.10040223]
[1737292559000,0.44762947,105160.0,105150.0,6.10040223]
[1737292561029,0.35253647,105160.0,105150.0,6.19550423]
[1737292561230,0.35253647,105160.0,105150.0,6.10040223]
[1737292561637,0.35253647,105160.0,105150.0,6.19550423]
[1737292562014,0.35253647,105160.0,105150.0,6.10040223]
[1737292563154,0.70341072,105160.0,105150.0,6.10040223]
[1737292563494,0.80265153,105160.0,105150.0,6.10040223]
[1737292563692,0.95265153,105160.0,105150.0,6.10040223]
[1737292563902,0.95265153,105160.0,105150.0,0.1307277]
[1737292563903,0.97565153,105160.0,105150.0,0.1307277]
[1737292564289,0.84774057,105160.0,105150.0,0.1307277]
[1737292564923,0.74849976,105160.0,105150.0,0.1307277]
[1737292565393,0.65332489,105160.0,105150.0,0.1307277]
[1737292565822,0.65254536,105160.0,105150.0,0.1307277]
[1737292566029,0.65332489,105160.0,105150.0,0.1307277]
[1737292567335,0.65332489,105160.0,105150.0,0.0004277]
[1737292567560,0.7525657,105160.0,105150.0,0.0004277]
[1737292567870,0.76207401,105160.0,105150.0,0.0004277]
[1737292569187,0.47429552,105160.0,105150.0,0.0004277]
[1737292569611,0.37427518,105160.0,105150.0,0.0004277]
[1737292570366,0.36476687,105160.0,105150.0,0.1298277]
[1737292571443,0.65278658,105160.0,105150.0,0.1298277]
[1737292573408,0.65356611,105160.0,105150.0,0.0830277]
[1737292575462,0.3655464,105160.0,105150.0,0.0830277]
[1737292575680,0.41971556,105160.0,105150.0,0.0830277]
[1737292575901,0.41971556,105160.0,105150.0,0.0004277]
[1737292577804,0.3655464,105160.0,105150.0,0.0004277]
[1737292578222,0.3655464,105160.0,105150.0,0.0472277]
[1737292581400,0.3655464,105160.0,105150.0,0.0004277]
[1737292582871,0.78585176,105160.0,105150.0,0.0004277]
[1737292587368,0.76207223,105160.0,105150.0,0.1242277]
[1737292588733,0.34176687,105160.0,105150.0,0.1242277]
[1737292590646,0.19176687,105160.0,105150.0,0.1242277]
[1737292591905,0.09667387,105160.0,105150.0,0.1242277]
[1737292592115,0.19176687,105160.0,105150.0,0.1242277]
[1737292592319,0.19176687,105160.0,105150.0,0.27344817]
[1737292592987,0.73685445,105160.0,105150.0,0.27344817]
[1737292593807,0.64176145,105160.0,105150.0,0.27344817]
[1737292594013,0.35318567,105160.0,105150.0,0.27344817]
[1737292594162,0.44827867,105160.0,105150.0,0.27344817]
[1737292595675,0.35318567,105160.0,105150.0,0.27344817]
[1737292595885,0.44827867,105160.0,105150.0,0.27344817]
[1737292596956,0.35318567,105160.0,105150.0,0.27344817]
[1737292597654,0.44827867,105160.0,105150.0,0.27344817]
[1737292597871,0.35318567,105160.0,105150.0,0.36855017]
[1737292598285,0.35318567,105160.0,105150.0,0.27344817]
[1737292598743,0.35318567,105160.0,105150.0,0.36855017]
[1737292604730,0.56673773,105160.0,105150.0,0.36855017]
[1737292605354,0.56673773,105160.0,105150.0,0.2193297]
[1737292605550,0.56673773,105160.0,105150.0,0.36855017]
[1737292605759,0.48105126,105160.0,105150.0,0.36855017]
[1737292607191,0.31022593,105160.0,105150.0,0.36855017]
[1737292607728,0.40531893,105160.0,105150.0,0.27344817]
[1737292609152,0.48101855,105160.0,105150.0,0.36855017]
[1737292609350,0.38524369,105160.0,105150.0,0.51855017]
[1737292609552,0.25714369,105160.0,105150.0,0.76855017]
[1737292609777,0.12904369,105160.0,105150.0,0.76855017]
[1737292610004,0.12904369,105160.0,105150.0,0.86779098]
[1737292610228,0.00094369,105160.0,105150.0,0.86779098]
[1737292610489,0.25745041,105170.0,105160.0,0.62021347]
[1737292610728,0.25745041,105170.0,105160.0,0.71945428]
[1737292611170,0.03426541,105170.0,105160.0,0.95252068]
[1737292611386,0.28857578,105180.0,105170.0,0.39922047]
[1737292611587,0.28862519,105180.0,105170.0,0.61410168]
[1737292611946,4.941e-05,105180.0,105170.0,0.59354528]
[1737292612551,4.941e-05,105180.0,105170.0,0.74774528]
[1737292612759,4.941e-05,105180.0,105170.0,0.76830168]
[1737292612961,4.941e-05,105180.0,105170.0,0.74774528]
[1737292614718,4.941e-05,105180.0,105170.0,0.71774528]
[1737292615116,4.941e-05,105180.0,105170.0,0.73830168]
[1737292615629,4.941e-05,105180.0,105170.0,0.52790056]
[1737292615833,4.941e-05,105180.0,105170.0,0.47790056]
[1737292616183,4.941e-05,105180.0,105170.0,0.43090056]
[1737292616769,0.51111743,105210.0,105190.0,0.14922047]
[1737292616770,0.239009,105210.0,105190.0,0.14922047]
[1737292616939,0.19430081,105200.0,105190.0,0.14922047]
[1737292617140,0.38441481,105200.0,105190.0,0.14922047]
[1737292617961,0.19430081,105200.0,105190.0,0.14922047]
[1737292618675,0.19430081,105200.0,105180.0,0.475359]
[1737292618878,0.19430081,105200.0,105190.0,0.14922047]
[1737292619866,0.09924081,105200.0,105190.0,0.24428647]
[1737292620076,9.403e-05,105210.0,105200.0,0.24427747]
[1737292620247,0.09933484,105210.0,105200.0,0.24427747]
[1737292621459,0.09933484,105210.0,105200.0,0.34427747]
[1737292623154,0.09933484,105210.0,105200.0,0.095057]
[1737292623525,0.09933484,105210.0,105200.0,0.24427747]
[1737292626309,0.27428184,105210.0,105190.0,0.285178]
[1737292626507,0.19429781,105200.0,105180.0,0.475344]
[1737292626708,0.09924081,105200.0,105180.0,0.380277]
[1737292626844,0.09924081,105200.0,105190.0,0.24428647]
[1737292627423,0.19429781,105200.0,105190.0,0.24428647]
[1737292627624,0.095066,105190.0,105180.0,0.14922047]
[1737292627851,0.51324181,105190.0,105170.0,0.43445347]
[1737292628051,0.19431581,105180.0,105170.0,0.14922047]
[1737292628258,0.19431581,105180.0,105160.0,0.475434]
[1737292628474,0.19431581,105180.0,105160.0,0.575434]
[1737292628684,0.19431581,105180.0,105170.0,0.24430447]
[1737292628899,0.09924081,105180.0,105170.0,0.24430447]
[1737292629151,0.09924081,105180.0,105170.0,0.34430447]
[1737292629674,0.09924081,105180.0,105170.0,0.49430447]
[1737292630294,0.60415203,105210.0,105190.0,0.14922047]
[1737292630669,0.60415203,105210.0,105190.0,0.43441347]
[1737292630670,0.09924081,105200.0,105190.0,0.43441347]
[1737292636172,0.09924081,105200.0,105190.0,0.53441347]
[1737292636423,0.04709242,105210.0,105200.0,0.24427747]
[1737292636677,0.14633323,105210.0,105200.0,0.24427747]
[1737292638807,0.00099242,105210.0,105200.0,0.34427747]
[1737292639046,0.00099242,105210.0,105200.0,0.49427747]
[1737292641688,0.00099242,105210.0,105200.0,0.57337747]
[1737292642430,0.10023323,105210.0,105200.0,0.49427747]
[1737292642717,0.10023323,105210.0,105200.0,0.39427747]
[1737292642943,0.10023323,105210.0,105200.0,0.24427747]
[1737292643906,0.10023323,105210.0,105200.0,0.34427747]
[1737292645107,0.10023323,105210.0,105200.0,0.24427747]
[1737292645358,0.10023323,105210.0,105200.0,0.24470527]
[1737292653833,0.24488023,105210.0,105200.0,0.0954848]
[1737292654200,0.24488023,105210.0,105200.0,0.14964827]
[1737292654406,0.32418023,105210.0,105200.0,0.0004278]
[1737292654829,0.32418023,105210.0,105200.0,0.14964827]
[1737292655047,0.4094766,105210.0,105200.0,0.14964827]
[1737292655351,0.4094766,105210.0,105200.0,0.0004278]
[1737292655518,0.4094766,105210.0,105200.0,0.14964827]
[1737292655960,0.53675708,105210.0,105200.0,0.0004278]
[1737292656173,0.80899789,105210.0,105200.0,0.0004278]
[1737292656779,0.023,105200.0,105180.0,0.34573813]
[1737292657001,0.37585564,105190.0,105180.0,0.34573813]
[1737292657241,0.34620681,105190.0,105180.0,0.34573813]
[1737292658906,0.6023388,105190.0,105180.0,0.34573813]
[1737292659467,0.4842728,105190.0,105180.0,0.44081313]
[1737292659871,0.3553728,105190.0,105180.0,0.5900336]
[1737292660097,0.25613199,105190.0,105180.0,0.6900336]
[1737292660701,0.59727308,105190.0,105180.0,0.6900336]
[1737292661667,0.59727308,105200.0,105180.0,0.5949586]
[1737292661894,0.69233008,105200.0,105190.0,0.095066]